[Event "40th Cappelle Open 2024"]
[Site "Cappelle-la-Grande"]
[Date "2024.03.03"]
[Round "2.18"]
[White "Mannion, Stephen R"]
[Black "Enchev, Ivajlo"]
[Result "0-1"]
[ECO "B12"]
[WhiteElo "2166"]
[BlackElo "2425"]
[Annotator "TA"]
[PlyCount "98"]
[EventDate "2024.03.02"]
[EventType "swiss"]
[EventCountry "FRA"]
[SourceTitle "playchess.com"]
[Source "ChessBase"]
[SourceQuality "1"]
[TimeControl "40/5400+30:1800+30"]

{[%evp 14,98,35,15,51,45,64,58,73,51,39,39,41,20,50,42,43,32,37,39,49,48,81,61,120,116,91,15,8,14,24,18,32,20,0,8,27,0,0,0,184,-11,0,0,0,0,0,-117,-43,-132,-60,-166,-100,-168,-145,-215,-204,-243,-230,-281,-211,-208,-11,-131,-145,-121,0,-230,-208,-214,-309,-477,-442,-2829,-2390,-2079,-2006,-1590,-1308,-3530,-3346,-1493,-1320,-29975,-29976,-29974,-29976]} 1. e4 {[%emt 0:00:03]} c6 {[%emt 0:00:24]} 2. d4 {[%emt 0:00:06]} d5 {[%emt 0:00:05]} 3. e5 {[%emt 0:00:08]} Bf5 {[%emt 0:00:35]} 4. Nf3 {[%emt 0:00:29]} e6 {[%emt 0:00:07]} 5. Be2 {[%emt 0:00:09]} Nd7 {[%emt 0:00:45]} 6. O-O {[%emt 0:00:51]} Ne7 {[%emt 0:00:12]} 7. c3 {[%emt 0:01:08]} h6 {[%emt 0:04:08]} 8. Na3 {[%emt 0:02:05]} g5 {[%emt 0:06:29]} 9. Nc2 {[%emt 0:00:14]} Bg7 {[%emt 0:01:23]} 10. Ne3 {[%emt 0:04:39]} Be4 {[%emt 0:02:41] White is slightly better.} 11. Bd3 {[%emt 0:19:27]} Bxd3 {[%emt 0:02:11]} 12. Qxd3 {[%emt 0:00:03]} Ng6 {[%emt 0:01:05]} 13. g3 {[%emt 0:00:05]} Qe7 {[%emt 0:08:46]} 14. b4 {[%emt 0:03:19]} O-O {[%emt 0:03:27]} 15. a4 {[%emt 0:02:47]} f5 {[%emt 0:01:24]} 16. Ng2 {[%emt 0:05:42]} b6 {[%emt 0:02:07][%cal Bb7b6,Bb6c5,Bc5c4][%mdl 32]} 17. h4 {[%emt 0:04:17]} g4 {[%emt 0:00:22]} 18. Nfe1 {[%emt 0:53:58][%cal Bf3e1,Be1c2,Bc2b4][%mdl 32]} c5 {[%emt 0:01:37]} (18... a5 $14) 19. bxc5 $1 $16 {[%emt 0:00:00]} bxc5 {[%emt 0:02:11]} 20. Nf4 {[%emt 0:00:00]} (20. h5 $1 $16 {[%cal Rh5g6]} Ngxe5 21. dxe5) 20... Nxf4 $11 {[%emt 0:00:43]} 21. Bxf4 {[%emt 0:00:00]} c4 {[%emt 0:02:02]} 22. Qd2 {[%emt 0:00:00]} Kh7 {[%emt 0:01:10]} 23. Nc2 {[%emt 0:00:00]} Rfb8 {[%emt 0:01:17]} 24. Nb4 {[%emt 0:00:00] Nc6 is the strong threat.} Qe8 {[%emt 0:02:28]} 25. a5 {[%emt 0:00:00]} (25. Qc2 $5) 25... Bf8 {[%emt 0:01:36]} 26. Rfb1 {[%emt 0:00:00]} Qc8 $2 {[%emt 0:01:13]} (26... a6 $11) 27. Qc2 $2 {[%emt 0:00:00]} (27. Nxd5 $1 $18 {And now Ne3 would win.} Rxb1+ 28. Rxb1 exd5 29. Qc2) 27... Bxb4 {[%emt 0:02:06]} 28. Rxb4 {[%emt 0:00:00]} ({Much worse is} 28. cxb4 Rb5 $15) 28... Rxb4 {[%emt 0:00:16]} 29. cxb4 {[%emt 0:00:00]} Rb8 {[%emt 0:00:33][%cal Oa7a6]} 30. Bd2 {[%emt 0:00:00]} (30. a6 $1 $11 {remains equal.}) 30... Rb5 {[%emt 0:01:25]} (30... a6 $1 $17) 31. Bc3 {[%emt 0:00:00]} (31. a6 $15) 31... Nb8 {[%emt 0:00:14]} ({Black should try} 31... a6 $1 $17 32. Bd2 Nb8) 32. Qd2 {[%emt 0:00:00]} (32. a6 $1 $15) 32... Nc6 {[%emt 0:00:15]} (32... a6 $1 $19 33. Qe3 Nc6) 33. Ra4 {[%emt 0:00:00]} (33. a6 $17 {might work better.}) 33... Qf8 {[%emt 0:01:40]} 34. Kg2 {[%emt 0:00:31] White is weak on the light squares} (34. a6 $17) 34... a6 $1 $19 {[%emt 0:01:29]} 35. Kh2 {[%emt 0:00:56]} Rb7 {[%emt 0:00:25][%cal Of5f4]} 36. Kg2 {[%emt 0:00:37]} Rf7 {[%emt 0:03:19] White must now prevent ...f4.} 37. Qf4 {[%emt 0:04:11]} Ne7 $2 {[%emt 0:01:35]} (37... Na7 $19 {aiming for ...Nb5.} 38. b5 Nxb5) 38. Ra2 {[%emt 0:01:08]} (38. b5 $1 $11) 38... Ng6 $36 {[%emt 0:00:49][%mdl 2048] Keeping White busy.} 39. Qc1 {[%emt 0:00:09][%cal Ob4b5]} f4 {[%emt 0:01:08]} ({Black should play} 39... Rb7 $1 $17 {...f4 would now be deadly.} 40. Kg1 h5) 40. Qb1 $2 {[%emt 0:02:43] [#]} (40. b5 $11 {and White is okay.} axb5 41. a6 fxg3 42. fxg3) 40... h5 $1 $19 {[%emt 0:01:38]} 41. b5 {[%emt 0:09:24] [#]} Rb7 $1 {[%emt 0:00:56]} 42. Bb4 {[%emt 0:02:34]} Rxb5 {[%emt 0:06:45]} 43. Qxg6+ {[%emt 0:01:32]} (43. Rb2 $142 Qf5 44. Qe1) 43... Kxg6 {[%emt 0:00:04]} 44. Bxf8 {[%emt 0:00:06][%mdl 4096] Endgame. KRB-KR} f3+ {[%emt 0:00:03]} 45. Kh2 {[%emt 0:01:31]} Rb1 {[%emt 0:00:44]} 46. Rc2 {[%emt 0:04:06]} Kf5 {[%emt 0:00:59]} 47. Bh6 {[%emt 0:04:23]} Ke4 {[%emt 0:00:13]} 48. Be3 {[%emt 0:01:50]} Kd3 {[%emt 0:00:24]} 49. Ra2 {[%emt 0:05:02]} Kc3 {[%emt 0:00:10] Weighted Error Value: White=0.69/Black=0.35.  Loses game:     	White=1     	Black=1      Missed win:     	White=1     	Black=1      Mistake:       	White=8     	Black=5      Inaccurate:     	White=1     	Black=1      OK:         	White=7     	Black=13     Best:        	White=1     	Black=1      Strong:       	White=1     	Black=2} 0-1

[Event "40th Cappelle Open 2024"]
[Site "Cappelle-la-Grande"]
[Date "2024.03.04"]
[Round "3.1"]
[White "Puranik, Abhimanyu"]
[Black "Pacher, Milan"]
[Result "1-0"]
[ECO "B30"]
[WhiteElo "2618"]
[BlackElo "2393"]
[Annotator "TA"]
[PlyCount "39"]
[EventDate "2024.03.02"]
[EventType "swiss"]
[EventCountry "FRA"]
[SourceTitle "playchess.com"]
[Source "ChessBase"]
[SourceQuality "1"]
[TimeControl "40/5400+30:1800+30"]

{[%evp 11,39,31,39,22,41,21,28,13,23,10,0,18,12,-9,68,66,113,92,336,338,706,719,705,710,889,863,1259,1251,2152,2083]} 1. e4 {[%emt 0:00:12][%cal Be2e4,Be4e5][%mdl 32]} c5 {[%emt 0:00:15]} 2. Nf3 {[%emt 0:00:04]} Nc6 {[%emt 0:00:04]} 3. Bb5 {[%emt 0:00:46]} Nf6 {[%emt 0:00:09]} 4. Nc3 {[%emt 0:00:53]} g6 {[%emt 0:00:08]} 5. e5 {[%emt 0:01:46]} Ng4 {[%emt 0:00:04]} 6. Bxc6 {[%emt 0:01:19]} dxc6 {[%emt 0:00:02]} 7. Qe2 {[%emt 0:00:09]} Bg7 {[%emt 0:06:36]} 8. h3 {[%emt 0:01:14][%cal Bh2h3,Bh3h4,Bh4h5,Bh5g6][%mdl 32]} Nh6 {[%emt 0:00:03]} 9. g4 {[%emt 0:00:03] Repels Nf5. White has an edge.} O-O $1 {[%emt 0:02:09]} 10. d3 {[%emt 0:00:59]} f5 {[%emt 0:04:44]} 11. g5 {[%emt 0:00:31]} Nf7 {[%emt 0:00:03]} 12. Bf4 $36 {[%emt 0:00:04][%mdl 2048] White is more active.} Be6 {[%emt 0:02:06]} (12... Qa5 $11) 13. h4 $14 {[%emt 0:07:45]} b5 {[%emt 0:29:40]} (13... Qd7 $14 {feels stronger.}) 14. h5 $16 {[%emt 0:06:32] And now Nh4 would win.} a5 $2 {[%emt 0:02:46] [#] This costs Black the game.} (14... Re8 $16) 15. Nh4 $1 $18 {[%emt 0:03:43]} b4 $2 {[%emt 0:11:22]} (15... Nh8 16. h6 Bxh6 17. gxh6 a4) 16. hxg6 {[%emt 0:03:39] White is clearly winning.} hxg6 {[%emt 0:00:03]} 17. Nxg6 {[%emt 0:00:06]} bxc3 {[%emt 0:00:05][%cal Bb4c3,Bc3b2][%mdl 32]} 18. Qh5 {[%emt 0:00:34]} Nxg5 {[%emt 0:00:05]} 19. Bxg5 {[%emt 0:00:27]} cxb2 {[%emt 0:00:06]} 20. Rb1 {[%emt 0:00:22] Weighted Error Value: White=0.08 (flawless) /Black=0.85.  Loses game:     	---       	Black=1      Mistake:       	---       	Black=3      OK:         	White=1     	Black=4      Best:        	White=3     	---        Strong:       	White=1     	Black=1} ({Not} 20. Nxe7+ Qxe7 21. Rd1 (21. Qh7+ Kf7 $11) 21... Qd7 22. Qh7+ Kf7 23. Qh5+ Kg8 24. Qh7+ Kf7 25. Qh5+ Kg8 $11) 1-0

[Event "40th Cappelle Open 2024"]
[Site "Cappelle-la-Grande"]
[Date "2024.03.04"]
[Round "3.2"]
[White "Sasikiran, Krishnan"]
[Black "Tahay, Alexis"]
[Result "1-0"]
[ECO "E04"]
[WhiteElo "2578"]
[BlackElo "2382"]
[Annotator "TA"]
[PlyCount "55"]
[EventDate "2024.03.02"]
[EventType "swiss"]
[EventCountry "FRA"]
[SourceTitle "playchess.com"]
[Source "ChessBase"]
[SourceQuality "1"]
[TimeControl "40/5400+30:1800+30"]

{[%evp 11,55,34,26,9,23,13,18,18,8,9,8,6,21,20,20,18,20,17,40,35,34,33,39,41,81,19,279,267,397,356,376,300,995,968,1265,1261,1709,1616,1683,1451,1691,1709,1742,437,1743,1719]} 1. d4 {[%emt 0:00:07]} Nf6 {[%emt 0:00:06]} 2. c4 {[%emt 0:00:24]} e6 {[%emt 0:00:06]} 3. g3 {[%emt 0:00:18]} d5 {[%emt 0:00:41]} 4. Bg2 {[%emt 0:00:43]} dxc4 {[%emt 0:01:06]} 5. Nf3 {[%emt 0:01:14]} Bb4+ {[%emt 0:00:55]} 6. Bd2 {[%emt 0:04:18]} a5 {[%emt 0:00:23]} 7. a3 {[%emt 0:07:51]} Bxd2+ {[%emt 0:02:09]} 8. Nbxd2 {[%emt 0:00:44]} b5 {[%emt 0:01:33]} 9. b3 $1 {[%emt 0:01:09] The position is equal.} cxb3 {[%emt 0:01:59]} 10. Qxb3 {[%emt 0:00:28]} c6 {[%emt 0:00:23]} 11. O-O {[%emt 0:00:57]} O-O {[%emt 0:00:21]} 12. Rfc1 {[%emt 0:01:55][%mdl 1024] White has compensation.} Bb7 {[%emt 0:10:16]} 13. Qb2 {[%emt 0:02:07]} a4 {[%emt 0:04:01]} 14. Ne5 {[%emt 0:06:57][%cal Oc1c2]} Qb6 {[%emt 0:06:16]} 15. Rab1 {[%emt 0:17:37]} Rc8 {[%emt 0:08:57]} 16. Ne4 {[%emt 0:04:08]} Nxe4 {[%emt 0:02:42]} 17. Bxe4 {[%emt 0:00:07][%cal Bg2e4,Be4h7,Bh7c2][%mdl 32]} Na6 {[%emt 0:13:15]} 18. Qc2 {[%emt 0:12:46] White has more active pieces.} (18. e3 $16) 18... Rc7 $2 {[%emt 0:12:55][%mdl 8192] Black cannot hold the game after this.} (18... Qxd4 $11 {and Black has nothing to worry.} 19. Bxh7+ Kf8 20. Nxf7 Kxf7) 19. Bxh7+ $18 {[%emt 0:23:34]} (19. Bxc6 $2 Rac8 $19) 19... Kf8 {[%emt 0:08:15]} (19... Kh8 $142) 20. Qe4 {[%emt 0:03:03] [#] Strongly threatening Qh4.} Rd8 {[%emt 0:14:22]} 21. Rd1 {[%emt 0:01:54]} ({Don't do} 21. Qh4 Qxd4 22. Be4 g6 $18) 21... g5 {[%emt 0:01:25] Repels Qh4} ({Don't go for} 21... c5 $2 22. Qh4 Rd5 23. Be4 $18) (21... Rcd7) 22. Qf3 {[%emt 0:04:41] White is clearly winning.} Kg7 {[%emt 0:02:58] Prevents Qf6+} 23. Qh5 {[%emt 0:01:18]} Rxd4 {[%emt 0:03:16]} 24. Bc2 {[%emt 0:01:47]} c5 {[%emt 0:02:27][%cal Bc6c5,Bc5d4][%mdl 32]} 25. Qxg5+ {[%emt 0:01:05]} Kf8 {[%emt 0:00:07]} 26. Rxd4 cxd4 {[%emt 0:00:01]} 27. Qd8+ {[%emt 0:01:11]} Kg7 {[%emt 0:00:01]} 28. Nd7 {[%emt 0:00:13] Weighted Error Value: White=0.14 (very precise) /Black=0.41.  Loses game:     	---       	Black=1      Mistake:       	White=1     	Black=2      Inaccurate:     	---       	Black=2      OK:         	White=4     	Black=5      Best:        	White=3     	Black=1      Strong:       	White=1     	---} 1-0

[Event "40th Cappelle Open 2024"]
[Site "Cappelle-la-Grande"]
[Date "2024.03.04"]
[Round "3.3"]
[White "Riff, Jean-Noel"]
[Black "Can, Emre"]
[Result "1/2-1/2"]
[ECO "B51"]
[WhiteElo "2401"]
[BlackElo "2551"]
[Annotator "RC"]
[PlyCount "41"]
[EventDate "2024.03.02"]
[EventType "swiss"]
[EventCountry "FRA"]
[SourceTitle "playchess.com"]
[Source "ChessBase"]
[SourceQuality "1"]
[TimeControl "40/5400+30:1800+30"]

1. e4 {[%emt 0:00:03]} c5 {[%emt 0:00:10]} 2. Nf3 {[%emt 0:00:07]} d6 {[%emt 0:00:15]} 3. Bb5+ {[%emt 0:00:31]} Nd7 {[%emt 0:00:35]} 4. Ba4 {[%emt 0:00:57]} Ngf6 {[%emt 0:00:46]} 5. O-O {[%emt 0:02:05]} e6 {[%emt 0:01:05]} 6. c4 {[%emt 0:04:25]} Be7 {[%emt 0:06:03]} 7. Nc3 {[%emt 0:01:27]} O-O {[%emt 0:00:17]} 8. d4 {[%emt 0:00:52]} cxd4 {[%emt 0:00:20]} 9. Qxd4 {[%emt 0:00:39]} Qc7 {[%emt 0:03:54]} 10. Rd1 {[%emt 0:01:28]} a6 {[%emt 0:01:13]} 11. Bxd7 {[%emt 0:00:34]} Bxd7 {[%emt 0:01:26]} 12. Bf4 {[%emt 0:01:03]} Bc6 {[%emt 0:12:35]} 13. Bxd6 {[%emt 0:03:45]} Bxd6 {[%emt 0:00:28]} 14. Qxd6 {[%emt 0:00:06]} Qxd6 {[%emt 0:00:24]} 15. Rxd6 {[%emt 0:00:06]} Bxe4 {[%emt 0:01:07]} 16. Ne5 {[%emt 0:01:29]} Rac8 {[%emt 0:06:33]} 17. f3 {[%emt 0:12:02]} Rc5 {[%emt 0:03:59]} 18. Nd7 {[%emt 0:03:24]} Nxd7 {[%emt 0:00:16]} 19. Nxe4 {[%emt 0:00:04]} Rc7 {[%emt 0:00:08]} 20. b3 {[%emt 0:00:03]} Re8 {[%emt 0:06:25]} 21. Rad1 {[%emt 0:01:05]} 1/2-1/2

[Event "40th Cappelle Open 2024"]
[Site "Cappelle-la-Grande"]
[Date "2024.03.04"]
[Round "3.4"]
[White "Zylka, Stanislaw"]
[Black "Valsecchi, Alessio"]
[Result "1/2-1/2"]
[ECO "D30"]
[WhiteElo "2401"]
[BlackElo "2490"]
[Annotator "TA"]
[PlyCount "88"]
[EventDate "2024.03.02"]
[EventType "swiss"]
[EventCountry "FRA"]
[SourceTitle "playchess.com"]
[Source "ChessBase"]
[SourceQuality "1"]
[TimeControl "40/5400+30:1800+30"]

{[%evp 9,88,18,20,7,12,8,15,0,10,0,42,26,32,29,33,30,82,83,113,50,76,73,137,125,216,49,104,105,139,138,125,117,219,153,139,89,104,120,124,-144,-159,-176,-151,-127,-166,-190,-131,-152,-178,-172,-149,-217,-69,-69,-71,-64,-64,-64,-64,-64,-7,-7,0,-227,-25,-47,-7,-64,-64,-64,-29,-64,-64,-64,-64,-64,0,-8,0,-64,0]} 1. d4 {[%emt 0:00:04]} d5 {[%emt 0:00:59]} 2. c4 {[%emt 0:00:09]} e6 {[%emt 0:00:26]} 3. Nf3 {[%emt 0:00:16]} Nd7 {[%emt 0:01:29]} 4. g3 {[%emt 0:04:42]} dxc4 {[%emt 0:00:10]} 5. Bg2 {[%emt 0:00:10]} Rb8 {[%emt 0:00:11]} 6. O-O {[%emt 0:00:25]} b5 {[%emt 0:00:20]} 7. b3 {[%emt 0:02:48]} Ngf6 {[%emt 0:03:56]} 8. bxc4 {[%emt 0:00:41] Die Stellung ist ausgeglichen.} bxc4 {[%emt 0:00:06]} 9. Qc2 {[%emt 0:04:53][%cal Of3e5]} Ba6 {[%emt 0:14:30]} 10. Rd1 {[%emt 0:01:48][%mdl 1024] Weiss hat Kompensation.} Nd5 {[%emt 0:06:30]} 11. a3 {[%emt 0:11:36]} Be7 {[%emt 0:12:55]} 12. e4 {[%emt 0:04:39]} N5b6 {[%emt 0:00:39]} (12... N5f6 $11) 13. a4 $16 {[%emt 0:06:16]} O-O {[%emt 0:02:32]} 14. Nc3 {[%emt 0:03:26]} (14. Na3 $16) 14... Bb4 {[%emt 0:06:38]} 15. Bf4 {[%emt 0:08:09]} Nc8 {[%emt 0:06:46]} (15... Bb7 $142) 16. Nb5 {[%emt 0:05:08]} Bd6 {[%emt 0:04:43]} (16... Rxb5 $16 {war nötig.} 17. axb5 Bxb5) 17. Bg5 $2 {[%emt 0:02:05]} (17. Qxc4 Bxf4 18. gxf4 Bxb5 19. axb5 Nd6 $14) ({Weiss braucht} 17. e5 $18 Be7 18. d5 (18. Qxc4 Rb7 $16) 18... exd5 19. Nfd4 (19. Rxd5 c6 $16) 19... Rxb5 (19... Bxb5 $2 20. axb5 Qe8 21. Bxd5 $18) 20. axb5) 17... f6 {[%emt 0:03:25]} (17... Be7 $14 18. Bf4 Rb7 (18... Bxb5 19. axb5 g5 20. Be3 $18)) 18. Be3 {[%emt 0:01:27]} Ndb6 {[%emt 0:02:38]} 19. Bh3 {[%emt 0:03:19]} Qe8 {[%emt 0:10:41]} 20. e5 {[%emt 0:07:22]} Bb7 {[%emt 0:00:13]} (20... Bxb5 $16 21. axb5 (21. exd6 Bd7 $11) 21... Bb4) 21. exd6 {[%emt 0:02:36]} Bxf3 {[%emt 0:00:07]} 22. Nxc7 {[%emt 0:09:19]} (22. dxc7 $142 Rb7 23. d5 Bxd1 24. Rxd1 exd5 25. Bc5) 22... Qh5 {[%emt 0:01:23]} 23. Bxe6+ {[%emt 0:01:01]} Kh8 {[%emt 0:00:02] [#] Schwarz hat schwache schwarze Felder} 24. a5 $2 {[%emt 0:04:38][%mdl 8192] Das Brett brennt. Aktives Gegenspiel!} f5 $1 $17 {[%emt 0:01:39]} 25. h4 {[%emt 0:00:14] [#] Schwarz muss nun Re1 beachten.} (25. axb6 $2 Qh3 26. Bxc8 Qg2#) 25... Be4 $1 {[%emt 0:06:30]} 26. Qxe4 {[%emt 0:09:10]} fxe4 {[%emt 0:00:14]} 27. axb6 {[%emt 0:00:04]} Nxb6 {[%emt 0:00:18]} (27... axb6 $19 28. d7 Nd6) 28. Re1 {[%emt 0:01:01]} Rbd8 {[%emt 0:00:33]} 29. Rxa7 {[%emt 0:00:43]} ({Vergiftet wäre} 29. Bf4 $2 Rxf4 30. gxf4 Rxd6 (30... Qxh4 $2 31. Rxe4 Rxd6 32. Bh3 $19) 31. Rxa7 Rxe6 (31... Qxh4 $2 32. Rb7 $19) (31... Qg6+ $2 32. Kf1 $19) 32. Nxe6 Qg4+ (32... Qxh4 33. Rxg7 c3 34. Rxe4 $11) 33. Kf1 Qxe6 $19) 29... Rxd6 {[%emt 0:03:02][%cal Ob6a8] Und ...Na8! würde nun gewinnen.} 30. d5 {[%emt 0:00:16]} (30. Bh3 $17 {war angesagt.}) 30... Nd7 {[%emt 0:05:07]} (30... c3 $19 31. Nb5 Rxe6 32. dxe6 Qxb5) 31. Nb5 $1 $15 {[%emt 0:03:04][%csl LRd6,LRd7]} Rxd5 {[%emt 0:01:37]} 32. Bxd7 {[%emt 0:00:30] [#]} Rxd7 $1 {[%emt 0:01:05]} 33. Rxd7 {[%emt 0:00:08][%cal Oe3d4]} Qxb5 {[%emt 0:00:05]} 34. Red1 {[%emt 0:01:40]} Qa4 {[%emt 0:02:58]} (34... c3 $15 35. Rc7 h6) 35. R1d4 $11 {[%emt 0:01:00]} Qc6 {[%emt 0:01:31] ...c3 ist eine echte Drohung.} 36. Bf4 $2 {[%emt 0:01:53] [#]} (36. R4d6 $11 {und Weiss steht sicher.} Qa4 37. Rc7) 36... c3 $2 {[%emt 0:00:42]} (36... e3 $1 $19 {[%cal Re3e2] Und jetzt ...e2 wäre schön.} 37. Bxe3 c3) 37. Rc7 {[%emt 0:00:12]} Qb6 {[%emt 0:00:58]} 38. Rdc4 {[%emt 0:01:28]} (38. Rdd7 $1 $11) 38... h6 $15 {[%emt 0:00:14]} 39. Rxc3 {[%emt 0:00:32]} Qe6 {[%emt 0:00:59]} 40. Be3 {[%emt 0:00:24]} Rd8 $1 {[%emt 0:00:26]} 41. Rc1 {[%emt 0:02:21]} Qg4 {[%emt 0:03:52]} 42. Bf4 {[%emt 0:04:56]} Re8 {[%emt 0:11:34]} ({Günstiger ist} 42... Rd1+ $15 43. Rxd1 Qxd1+ 44. Kh2 Qg4) 43. Be3 $11 {[%emt 0:00:42]} Rd8 {[%emt 0:00:08]} (43... Rb8 $11) 44. Bf4 $1 $15 {[%emt 0:00:56]} Re8 {[%emt 0:00:07] Pariert Re7. Weiß willigt fröhlich ins Remis ein.   Gewichteter Fehlerwert: Weiß=0.35/Schwarz=0.35.  Verlustzug:     	Weiß=1     	---        Gewinn verpasst:   	Weiß=1     	Schwarz=1     Fehler:       	Weiß=5     	Schwarz=11    Ungenau:       	Weiß=2     	Schwarz=5     OK:         	Weiß=12    	Schwarz=10    Bester:       	Weiß=2     	Schwarz=5     Stark:        	Weiß=2     	Schwarz=3     Brilliant:      	---       	Schwarz=1} ({Vorzuziehen ist} 44... Rd1+ $15 45. Rxd1 Qxd1+ 46. Kh2 Qh5) 1/2-1/2

[Event "40th Cappelle Open 2024"]
[Site "Cappelle-la-Grande"]
[Date "2024.03.04"]
[Round "3.5"]
[White "Vlachos, Anatole"]
[Black "Molenda, Marcin"]
[Result "1-0"]
[ECO "C54"]
[WhiteElo "2479"]
[BlackElo "2377"]
[Annotator "TA"]
[PlyCount "67"]
[EventDate "2024.03.02"]
[EventType "swiss"]
[EventCountry "FRA"]
[SourceTitle "playchess.com"]
[Source "ChessBase"]
[SourceQuality "1"]
[TimeControl "40/5400+30:1800+30"]

{[%evp 14,67,13,9,44,22,37,-8,16,-30,-15,-20,0,0,0,0,0,0,0,-3,25,0,0,0,41,6,19,0,0,0,0,8,56,60,69,68,116,104,117,119,119,129,127,117,128,114,893,879,2138,1854,29980,29981,29984,29985,29980,983]} 1. e4 {[%emt 0:00:03]} e5 {[%emt 0:00:05]} 2. Nf3 {[%emt 0:00:04]} Nc6 {[%emt 0:00:04]} 3. Bc4 {[%emt 0:00:02]} Bc5 {[%emt 0:01:25]} 4. d3 {[%emt 0:00:05]} Nf6 {[%emt 0:01:17]} 5. Bg5 {[%emt 0:00:04][%cal Bc1g5,Bg5h4,Bh4g3][%mdl 32]} h6 {[%emt 0:01:35]} 6. Bh4 {[%emt 0:00:03]} d6 {[%emt 0:01:11]} 7. c3 {[%emt 0:00:13]} g5 {[%emt 0:08:30]} 8. Bg3 $1 {[%emt 0:00:06]} Qe7 {[%emt 0:00:40]} 9. Nbd2 {[%emt 0:20:13][%cal Bb1d2,Bd2f1,Bf1e3,Be3c2][%mdl 32]} a5 {[%emt 0:32:53]} 10. Nf1 {[%emt 0:08:21]} Be6 {[%emt 0:04:29] ...Bxc4 is the strong threat. The position is equal.} 11. Bxe6 {[%emt 0:04:37]} (11. Bb5 {was preferrable.}) 11... fxe6 {[%emt 0:00:07]} 12. Ne3 {[%emt 0:02:14]} h5 {[%emt 0:02:25] [#] Threatens to win with ...h4.} 13. h4 {[%emt 0:01:16]} g4 {[%emt 0:00:23]} 14. Ng5 {[%emt 0:01:22]} Nh7 {[%emt 0:01:54]} 15. Nxh7 {[%emt 0:00:06]} Qxh7 {[%emt 0:02:03]} 16. O-O {[%emt 0:01:48]} O-O {[%emt 0:08:55]} 17. Nc2 {[%emt 0:02:17]} Qg7 {[%emt 0:00:22]} 18. Qd2 {[%emt 0:01:26]} a4 {[%emt 0:00:54]} 19. Rad1 {[%emt 0:00:32]} Bb6 {[%emt 0:03:21]} 20. d4 {[%emt 0:03:17]} Ra5 {[%emt 0:00:44][%cal Ba8a5,Ba5b5,Bb5b2][%mdl 32]} 21. Kh2 {[%emt 0:02:55]} exd4 {[%emt 0:07:11]} 22. Nxd4 {[%emt 0:00:23]} Bxd4 {[%emt 0:04:45]} (22... Nxd4 $11 23. cxd4 Qg6) 23. cxd4 $14 {[%emt 0:00:02] Black must now prevent d5.} Rb5 {[%emt 0:00:53]} 24. Qc3 {[%emt 0:02:58]} Rf7 {[%emt 0:00:59] [#]} (24... Kh7 $14 {is more appropriate.}) 25. Qc4 $1 $16 {[%emt 0:04:41]} Rxb2 {[%emt 0:00:17]} 26. Qxe6 {[%emt 0:00:07]} Nxd4 {[%emt 0:01:14]} 27. Qe8+ {[%emt 0:00:24]} Rf8 {[%emt 0:00:17]} 28. Qxa4 {[%emt 0:02:29]} ({Of course not} 28. Qxh5 $6 Rb5 29. e5 Rf5 30. Qe8+ Rf8 $11) 28... Ne2 {[%emt 0:00:25]} 29. e5 {[%emt 0:06:43]} Nxg3 $4 {[%emt 0:04:38][%mdl 8192] This move loses the game for Black.} (29... dxe5 $16 30. Qa3 Rb6) 30. fxg3 $18 {[%emt 0:00:06]} Rxf1 {[%emt 0:03:47]} 31. Rxf1 {[%emt 0:00:02]} Qxe5 {[%emt 0:00:22]} 32. Qa8+ {[%emt 0:00:34] White mates.} Kg7 {[%emt 0:02:33]} 33. Qf8+ {[%emt 0:00:05]} Kg6 {[%emt 0:00:02]} 34. Qf7+ {[%emt 0:00:10] Weighted Error Value: White=0.09 (flawless) /Black=0.41.  Loses game:     	---       	Black=1      Mistake:       	White=1     	Black=2      Inaccurate:     	White=2     	Black=3      OK:         	White=10    	Black=7      Best:        	White=1     	Black=1      Strong:       	White=1     	---} 1-0

[Event "40th Cappelle Open 2024"]
[Site "Cappelle-la-Grande"]
[Date "2024.03.04"]
[Round "3.6"]
[White "Samani, Yamac"]
[Black "Velten, Paul"]
[Result "1/2-1/2"]
[ECO "C10"]
[WhiteElo "2378"]
[BlackElo "2475"]
[Annotator "TA"]
[PlyCount "39"]
[EventDate "2024.03.02"]
[EventType "swiss"]
[EventCountry "FRA"]
[SourceTitle "playchess.com"]
[Source "ChessBase"]
[SourceQuality "1"]
[TimeControl "40/5400+30:1800+30"]

{[%evp 9,39,45,46,40,49,36,56,25,67,39,49,16,49,52,56,47,49,52,51,51,50,17,22,4,7,0,0,0,0,0,0,-17]} 1. e4 {[%emt 0:01:27]} e6 {[%emt 0:00:33]} 2. d4 {[%emt 0:00:06]} d5 {[%emt 0:00:26]} 3. Nc3 {[%emt 0:00:57]} Nc6 {[%emt 0:01:43]} 4. e5 {[%emt 0:01:56]} Nge7 {[%emt 0:00:29]} 5. Nf3 {[%emt 0:01:19]} b6 {[%emt 0:02:27]} 6. h4 {[%emt 0:01:35]} Qd7 {[%emt 0:02:25]} 7. h5 {[%emt 0:01:49]} h6 {[%emt 0:03:22]} 8. a3 {[%emt 0:13:19][%cal Ba2a3,Ba3a4][%mdl 32] White is slightly better.} a5 {[%emt 0:01:01]} 9. Bf4 {[%emt 0:05:02] White is more active.} Ba6 {[%emt 0:00:50]} 10. Nb5 {[%emt 0:01:23]} Nb8 {[%emt 0:03:24]} 11. a4 {[%emt 0:01:19]} Nec6 {[%emt 0:00:58]} 12. c3 {[%emt 0:01:56]} Na7 {[%emt 0:00:20]} 13. Nxa7 {[%emt 0:04:04]} Bxf1 {[%emt 0:01:09]} 14. Kxf1 {[%emt 0:00:15]} Rxa7 {[%emt 0:00:06]} 15. g3 {[%emt 0:03:38]} c5 {[%emt 0:02:54] The position is equal.} 16. Kg2 {[%emt 0:01:47]} Be7 {[%emt 0:00:36]} 17. Qe2 {[%emt 0:05:15]} Nc6 {[%emt 0:01:03]} 18. g4 {[%emt 0:04:08]} Rc7 {[%emt 0:01:46]} 19. Rhc1 {[%emt 0:00:06]} O-O {[%emt 0:00:05]} 20. Qb5 {[%emt 0:00:10] Weighted Error Value: White=0.13 (very precise) /Black=0.08 (flawless) .  Inaccurate:     	White=4     	Black=2      OK:         	White=2     	Black=7} 1/2-1/2